[Event "Early-Titled-Tuesday-Blitz-February-20-2024"]
[Site "Chess.com"]
[Date "2024.02.20"]
[Round "9"]
[White "AlexTruskavetsky"]
[Black "ChainedDowntohell"]
[Result "1-0"]
[WhiteElo "2718"]
[BlackElo "2556"]
[TimeControl "180+1"]
[EndTime "9:44:32 PST"]
[Termination "AlexTruskavetsky won by resignation"]

1. d4 {[%clk 0:03:00.9]} 1... Nf6 {[%clk 0:02:58.2]} 2. c4 {[%clk 0:03:00]} 2...
e6 {[%clk 0:02:56.8]} 3. Nc3 {[%clk 0:02:59.9]} 3... Bb4 {[%clk 0:02:27.9]} 4.
e3 {[%clk 0:02:58.3]} 4... O-O {[%clk 0:01:43.7]} 5. a3 {[%clk 0:02:57.2]} 5...
Bxc3+ {[%clk 0:01:43.1]} 6. bxc3 {[%clk 0:02:58.1]} 6... d5 {[%clk 0:01:41.5]}
7. cxd5 {[%clk 0:02:59]} 7... exd5 {[%clk 0:01:39.3]} 8. Bd3 {[%clk 0:02:58.9]}
8... b6 {[%clk 0:01:38.7]} 9. Ne2 {[%clk 0:02:57.9]} 9... c5 {[%clk 0:01:37.7]}
10. O-O {[%clk 0:02:57.8]} 10... Ba6 {[%clk 0:01:37.2]} 11. f3 {[%clk
0:02:57.3]} 11... Re8 {[%clk 0:01:36.3]} 12. Ng3 {[%clk 0:02:56]} 12... h5
{[%clk 0:01:34.8]} 13. Bxa6 {[%clk 0:02:37.6]} 13... Nxa6 {[%clk 0:01:34.5]} 14.
Qd3 {[%clk 0:02:38.2]} 14... Nc7 {[%clk 0:01:30.1]} 15. e4 {[%clk 0:02:38.3]}
15... h4 {[%clk 0:01:29.3]} 16. Nf5 {[%clk 0:02:38.1]} 16... dxe4 {[%clk
0:01:25.4]} 17. fxe4 {[%clk 0:02:39]} 17... cxd4 {[%clk 0:01:23.6]} 18. Bg5
{[%clk 0:02:36.8]} 18... dxc3 {[%clk 0:01:18.7]} 19. Qxc3 {[%clk 0:02:36.9]}
19... Nb5 {[%clk 0:00:50.8]} 20. Qb2 {[%clk 0:02:32.9]} 20... Rxe4 {[%clk
0:00:42.3]} 21. Nxg7 {[%clk 0:02:24.5]} 21... Qd4+ {[%clk 0:00:20.3]} 22. Qxd4
{[%clk 0:02:23.6]} 22... Nxd4 {[%clk 0:00:20.2]} 23. Bxf6 {[%clk 0:02:24]} 23...
Rc8 {[%clk 0:00:10.7]} 24. Bxd4 {[%clk 0:02:23.8]} 24... Rxd4 {[%clk 0:00:10.4]}
25. Nf5 {[%clk 0:02:23.8]} 25... Rd2 {[%clk 0:00:10.2]} 26. Ne7+ {[%clk
0:02:23.8]} 1-0

[Event "Early-Titled-Tuesday-Blitz-February-20-2024"]
[Site "Chess.com"]
[Date "2024.02.20"]
[Round "9"]
[White "Arystanner"]
[Black "SaiAgni_98"]
[Result "1-0"]
[WhiteElo "2757"]
[BlackElo "2570"]
[TimeControl "180+1"]
[EndTime "9:44:41 PST"]
[Termination "Arystanner won by resignation"]

1. e4 {[%clk 0:02:55]} 1... d6 {[%clk 0:03:00]} 2. d4 {[%clk 0:02:54.8]} 2...
Nf6 {[%clk 0:03:00.6]} 3. Nc3 {[%clk 0:02:55.4]} 3... Nbd7 {[%clk 0:03:01.3]} 4.
Nf3 {[%clk 0:02:55.7]} 4... e5 {[%clk 0:03:02]} 5. Bc4 {[%clk 0:02:55.2]} 5...
Be7 {[%clk 0:03:02.3]} 6. O-O {[%clk 0:02:55.5]} 6... O-O {[%clk 0:03:02.6]} 7.
Re1 {[%clk 0:02:56.1]} 7... c6 {[%clk 0:03:02.9]} 8. h3 {[%clk 0:02:56.7]} 8...
b5 {[%clk 0:03:02.8]} 9. b4 {[%clk 0:02:57]} 9... bxc4 {[%clk 0:03:02.9]} 10.
Be3 {[%clk 0:02:53.2]} 10... Qc7 {[%clk 0:03:00.6]} 11. a4 {[%clk 0:02:52.9]}
11... Re8 {[%clk 0:02:56.2]} 12. Rb1 {[%clk 0:02:51.1]} 12... Rb8 {[%clk
0:02:55.7]} 13. Qe2 {[%clk 0:02:50.5]} 13... d5 {[%clk 0:02:47]} 14. exd5 {[%clk
0:02:32.5]} 14... Nxd5 {[%clk 0:02:42.1]} 15. Qxc4 {[%clk 0:02:30.1]} 15... Nxe3
{[%clk 0:02:28]} 16. Rxe3 {[%clk 0:02:26.9]} 16... Nb6 {[%clk 0:02:28.1]} 17.
Qe2 {[%clk 0:02:24.4]} 17... exd4 {[%clk 0:02:13.8]} 18. Nxd4 {[%clk 0:02:25.3]}
18... Be6 {[%clk 0:02:00.2]} 19. Nxe6 {[%clk 0:02:17.2]} 19... fxe6 {[%clk
0:02:01.1]} 20. Rxe6 {[%clk 0:02:17.7]} 20... Bf8 {[%clk 0:01:56.3]} 21. Rxe8
{[%clk 0:02:17.1]} 21... Rxe8 {[%clk 0:01:31.7]} 22. Qxe8 {[%clk 0:02:15.4]}
22... Qf4 {[%clk 0:01:32.6]} 23. Qxc6 {[%clk 0:02:12]} 23... Nc4 {[%clk
0:01:30.8]} 24. Nd5 {[%clk 0:02:08.9]} 24... Qh4 {[%clk 0:01:22.7]} 25. Qe6+
{[%clk 0:02:08.5]} 25... Kh8 {[%clk 0:01:22.8]} 26. Qf7 {[%clk 0:02:08.9]} 26...
Qd8 {[%clk 0:01:21]} 27. Nf4 {[%clk 0:02:04.1]} 27... Nd6 {[%clk 0:01:13.7]} 28.
Qd5 {[%clk 0:02:03.2]} 28... Qf6 {[%clk 0:01:12.3]} 29. Ne6 {[%clk 0:01:59.8]}
29... Nf5 {[%clk 0:01:02.2]} 30. Qa8 {[%clk 0:01:54.1]} 30... Kg8 {[%clk
0:00:57.2]} 31. Qxf8+ {[%clk 0:01:54.3]} 31... Qxf8 {[%clk 0:00:58.1]} 32. Nxf8
{[%clk 0:01:55.2]} 32... Kxf8 {[%clk 0:00:58.5]} 33. a5 {[%clk 0:01:56.1]} 33...
Nd4 {[%clk 0:00:57.3]} 34. b5 {[%clk 0:01:56.4]} 34... Ke7 {[%clk 0:00:57.2]}
35. b6 {[%clk 0:01:57]} 35... axb6 {[%clk 0:00:58.1]} 36. a6 {[%clk 0:01:57.6]}
36... Nc6 {[%clk 0:00:57.8]} 37. Rxb6 {[%clk 0:01:57.5]} 1-0

[Event "Early-Titled-Tuesday-Blitz-February-20-2024"]
[Site "Chess.com"]
[Date "2024.02.20"]
[Round "9"]
[White "Nikolakis2014"]
[Black "Dixit_Nikhil"]
[Result "1-0"]
[WhiteElo "2748"]
[BlackElo "2598"]
[TimeControl "180+1"]
[EndTime "9:44:51 PST"]
[Termination "Nikolakis2014 won by resignation"]

1. Nf3 {[%clk 0:03:00.9]} 1... Nf6 {[%clk 0:02:59]} 2. c4 {[%clk 0:02:59.4]}
2... g6 {[%clk 0:02:59.4]} 3. Nc3 {[%clk 0:02:58]} 3... Bg7 {[%clk 0:02:59.9]}
4. d4 {[%clk 0:02:58.6]} 4... O-O {[%clk 0:02:59.7]} 5. e4 {[%clk 0:02:59.2]}
5... d6 {[%clk 0:03:00.1]} 6. Be2 {[%clk 0:02:59.5]} 6... e5 {[%clk 0:02:58.9]}
7. Be3 {[%clk 0:02:59]} 7... exd4 {[%clk 0:02:58.8]} 8. Nxd4 {[%clk 0:02:58.4]}
8... Re8 {[%clk 0:02:59.5]} 9. f3 {[%clk 0:02:57.9]} 9... c6 {[%clk 0:03:00.2]}
10. Bf2 {[%clk 0:02:58.4]} 10... d5 {[%clk 0:02:59.9]} 11. exd5 {[%clk
0:02:58.7]} 11... cxd5 {[%clk 0:03:00]} 12. O-O {[%clk 0:02:58]} 12... Nc6
{[%clk 0:02:57.5]} 13. c5 {[%clk 0:02:57.5]} 13... Nh5 {[%clk 0:02:46.6]} 14.
Qd2 {[%clk 0:02:56.8]} 14... Be5 {[%clk 0:02:37.1]} 15. Rfe1 {[%clk 0:02:56.6]}
15... Nf4 {[%clk 0:02:23.3]} 16. Kh1 {[%clk 0:02:28.9]} 16... Qg5 {[%clk
0:01:54]} 17. Bf1 {[%clk 0:02:27.5]} 17... Qh5 {[%clk 0:01:36.1]} 18. Rxe5
{[%clk 0:02:15.2]} 18... Qxe5 {[%clk 0:01:20.3]} 19. Nxc6 {[%clk 0:02:01.6]}
19... bxc6 {[%clk 0:00:53.4]} 20. Re1 {[%clk 0:02:00.1]} 20... Qxe1 {[%clk
0:00:51.1]} 21. Bxe1 {[%clk 0:02:00.3]} 21... Bd7 {[%clk 0:00:48.1]} 22. Bf2
{[%clk 0:01:56.2]} 22... Ne6 {[%clk 0:00:45.8]} 23. b4 {[%clk 0:01:54]} 23...
Reb8 {[%clk 0:00:44.3]} 24. a3 {[%clk 0:01:51.3]} 24... a5 {[%clk 0:00:44.4]}
25. b5 {[%clk 0:01:51.3]} 25... cxb5 {[%clk 0:00:43.2]} 26. Nxd5 {[%clk
0:01:51.4]} 1-0

[Event "Early-Titled-Tuesday-Blitz-February-20-2024"]
[Site "Chess.com"]
[Date "2024.02.20"]
[Round "9"]
[White "romulocardoso"]
[Black "GMT4114"]
[Result "1-0"]
[WhiteElo "2338"]
[BlackElo "2039"]
[TimeControl "180+1"]
[EndTime "9:44:53 PST"]
[Termination "romulocardoso won by resignation"]

1. e4 {[%clk 0:03:00.2]} 1... e6 {[%clk 0:02:57.9]} 2. d4 {[%clk 0:03:00.2]}
2... d5 {[%clk 0:02:57.6]} 3. exd5 {[%clk 0:03:01.1]} 3... exd5 {[%clk 0:02:58]}
4. Nf3 {[%clk 0:03:02]} 4... Nf6 {[%clk 0:02:58.3]} 5. Bd3 {[%clk 0:03:02.9]}
5... c5 {[%clk 0:02:57.1]} 6. h3 {[%clk 0:03:03.4]} 6... c4 {[%clk 0:02:43.9]}
7. Be2 {[%clk 0:03:03.2]} 7... Bd6 {[%clk 0:02:43.6]} 8. O-O {[%clk 0:03:03.3]}
8... O-O {[%clk 0:02:43.1]} 9. b3 {[%clk 0:03:03.9]} 9... cxb3 {[%clk
0:02:29.8]} 10. axb3 {[%clk 0:03:04.8]} 10... Nc6 {[%clk 0:02:29.7]} 11. Bg5
{[%clk 0:03:03.5]} 11... h6 {[%clk 0:02:30.2]} 12. Bh4 {[%clk 0:03:03.5]} 12...
Re8 {[%clk 0:02:26.1]} 13. Nc3 {[%clk 0:03:02.4]} 13... Be6 {[%clk 0:02:20.8]}
14. Re1 {[%clk 0:02:58.4]} 14... Rc8 {[%clk 0:02:16.7]} 15. Bb5 {[%clk
0:02:53.8]} 15... g5 {[%clk 0:02:11]} 16. Bg3 {[%clk 0:02:53.5]} 16... Bxg3
{[%clk 0:02:10.9]} 17. fxg3 {[%clk 0:02:54.4]} 17... Qd6 {[%clk 0:02:07.7]} 18.
Kh2 {[%clk 0:02:37.8]} 18... a6 {[%clk 0:02:07.5]} 19. Bxc6 {[%clk 0:02:37.2]}
19... Rxc6 {[%clk 0:02:06.3]} 20. Na4 {[%clk 0:02:34.1]} 20... Ne4 {[%clk
0:02:02.5]} 21. Ne5 {[%clk 0:02:31.8]} 21... f6 {[%clk 0:01:35.8]} 22. Nxc6
{[%clk 0:02:30.9]} 22... Qxg3+ {[%clk 0:01:35.2]} 23. Kg1 {[%clk 0:02:27.7]}
23... Qf2+ {[%clk 0:01:04.8]} 24. Kh1 {[%clk 0:02:27.3]} 24... Bxh3 {[%clk
0:00:56.9]} 25. Qf3 {[%clk 0:02:26.3]} 25... Qg3 {[%clk 0:00:06.9]} 26. Rxe4
{[%clk 0:02:20.2]} 26... Qxf3 {[%clk 0:00:06]} 27. Rxe8+ {[%clk 0:02:19.7]}
27... Kf7 {[%clk 0:00:05.5]} 28. gxf3 {[%clk 0:02:20.3]} 28... bxc6 {[%clk
0:00:04.7]} 29. Rae1 {[%clk 0:02:19.2]} 1-0

[Event "Early-Titled-Tuesday-Blitz-February-20-2024"]
[Site "Chess.com"]
[Date "2024.02.20"]
[Round "9"]
[White "AttilaTurzo"]
[Black "ShieldingOff"]
[Result "0-1"]
[WhiteElo "2476"]
[BlackElo "2338"]
[TimeControl "180+1"]
[EndTime "9:45:18 PST"]
[Termination "ShieldingOff won by resignation"]

1. d4 {[%clk 0:02:58]} 1... c5 {[%clk 0:02:59.5]} 2. d5 {[%clk 0:02:57.6]} 2...
e5 {[%clk 0:02:59.7]} 3. Nc3 {[%clk 0:02:55.4]} 3... d6 {[%clk 0:02:57.5]} 4. e4
{[%clk 0:02:55.2]} 4... Be7 {[%clk 0:02:53.1]} 5. Nf3 {[%clk 0:02:51.6]} 5... a6
{[%clk 0:02:52.3]} 6. a4 {[%clk 0:02:50.2]} 6... Bg4 {[%clk 0:02:49]} 7. Be2
{[%clk 0:02:49.7]} 7... Bxf3 {[%clk 0:02:48]} 8. Bxf3 {[%clk 0:02:49.5]} 8...
Bg5 {[%clk 0:02:48.2]} 9. O-O {[%clk 0:02:50]} 9... Bxc1 {[%clk 0:02:46.8]} 10.
Qxc1 {[%clk 0:02:50.9]} 10... Ne7 {[%clk 0:02:46.6]} 11. Bh5 {[%clk 0:02:41.6]}
11... O-O {[%clk 0:02:41.8]} 12. f4 {[%clk 0:02:41.9]} 12... Nd7 {[%clk
0:02:37.7]} 13. f5 {[%clk 0:02:41.3]} 13... Nf6 {[%clk 0:02:37.3]} 14. Bf3
{[%clk 0:02:38.7]} 14... Rb8 {[%clk 0:02:22.4]} 15. a5 {[%clk 0:02:38.1]} 15...
b5 {[%clk 0:02:20.9]} 16. axb6 {[%clk 0:02:37.6]} 16... Qxb6 {[%clk 0:02:20.5]}
17. Ra2 {[%clk 0:02:36.4]} 17... c4+ {[%clk 0:02:14.4]} 18. Kh1 {[%clk
0:02:36.8]} 18... g6 {[%clk 0:02:05.3]} 19. g4 {[%clk 0:02:25]} 19... Kh8 {[%clk
0:01:28.9]} 20. g5 {[%clk 0:02:20.5]} 20... Nfxd5 {[%clk 0:01:16.8]} 21. Nxd5
{[%clk 0:02:06.6]} 21... Nxd5 {[%clk 0:01:16.2]} 22. exd5 {[%clk 0:02:07.5]}
22... gxf5 {[%clk 0:01:13.1]} 23. Bg2 {[%clk 0:02:07.7]} 23... f4 {[%clk
0:01:10.1]} 24. c3 {[%clk 0:01:55.7]} 24... Rg8 {[%clk 0:01:09]} 25. h4 {[%clk
0:01:52.4]} 25... f6 {[%clk 0:01:06.7]} 26. gxf6 {[%clk 0:01:48.8]} 26... Rbf8
{[%clk 0:01:00.1]} 27. Bf3 {[%clk 0:01:28]} 27... Rg3 {[%clk 0:00:52.4]} 28. Rg1
{[%clk 0:01:27]} 28... Rxf3 {[%clk 0:00:50.1]} 29. Kh2 {[%clk 0:01:20.4]} 29...
Qf2+ {[%clk 0:00:47.4]} 30. Rg2 {[%clk 0:01:19]} 30... Qxh4+ {[%clk 0:00:45]}
31. Kg1 {[%clk 0:01:19.3]} 31... Rh3 {[%clk 0:00:43]} 0-1

[Event "Early-Titled-Tuesday-Blitz-February-20-2024"]
[Site "Chess.com"]
[Date "2024.02.20"]
[Round "9"]
[White "Chessdude1987"]
[Black "mishanick"]
[Result "0-1"]
[WhiteElo "2349"]
[BlackElo "3018"]
[TimeControl "180+1"]
[EndTime "9:45:21 PST"]
[Termination "mishanick won on time"]

1. e4 {[%clk 0:03:00.9]} 1... c5 {[%clk 0:02:58.1]} 2. Nf3 {[%clk 0:03:01.4]}
2... d6 {[%clk 0:02:58.7]} 3. Bb5+ {[%clk 0:03:00.1]} 3... Bd7 {[%clk
0:02:58.4]} 4. Bxd7+ {[%clk 0:02:58.6]} 4... Nxd7 {[%clk 0:02:59.3]} 5. d4
{[%clk 0:02:53.4]} 5... cxd4 {[%clk 0:02:57.7]} 6. Qxd4 {[%clk 0:02:52.7]} 6...
Ngf6 {[%clk 0:02:54.9]} 7. Nc3 {[%clk 0:02:50.6]} 7... g6 {[%clk 0:02:55]} 8.
O-O {[%clk 0:02:46.9]} 8... Bg7 {[%clk 0:02:55.2]} 9. h3 {[%clk 0:02:43.6]} 9...
O-O {[%clk 0:02:55.4]} 10. a4 {[%clk 0:02:29]} 10... a6 {[%clk 0:02:54.4]} 11.
a5 {[%clk 0:02:28.4]} 11... Rc8 {[%clk 0:02:54.4]} 12. Rd1 {[%clk 0:02:21.6]}
12... Qc7 {[%clk 0:02:54.3]} 13. Bd2 {[%clk 0:02:18.1]} 13... Nc5 {[%clk
0:02:53.7]} 14. Qe3 {[%clk 0:02:16.4]} 14... Rfd8 {[%clk 0:02:52]} 15. Rac1
{[%clk 0:02:06]} 15... e6 {[%clk 0:02:50.1]} 16. b4 {[%clk 0:01:58.1]} 16...
Ncd7 {[%clk 0:02:48.5]} 17. Ne2 {[%clk 0:01:48.8]} 17... d5 {[%clk 0:02:47.7]}
18. exd5 {[%clk 0:01:38.5]} 18... Nxd5 {[%clk 0:02:47.3]} 19. Qb3 {[%clk
0:01:38.4]} 19... Qc4 {[%clk 0:02:46.6]} 20. Qxc4 {[%clk 0:01:32.9]} 20... Rxc4
{[%clk 0:02:47.5]} 21. c3 {[%clk 0:01:33.2]} 21... Rdc8 {[%clk 0:02:47.8]} 22.
Be1 {[%clk 0:01:17.9]} 22... Ne5 {[%clk 0:02:46.1]} 23. Nd2 {[%clk 0:01:15.3]}
23... R4c7 {[%clk 0:02:46]} 24. Ne4 {[%clk 0:01:13.1]} 24... Nc4 {[%clk
0:02:45.1]} 25. Nc5 {[%clk 0:01:03.9]} 25... Bf8 {[%clk 0:02:33.2]} 26. Na4
{[%clk 0:00:55.5]} 26... Nd6 {[%clk 0:02:23.1]} 27. Nd4 {[%clk 0:00:52.8]} 27...
Bh6 {[%clk 0:02:19.4]} 28. Rb1 {[%clk 0:00:46.7]} 28... Bg7 {[%clk 0:02:19.8]}
29. Nb6 {[%clk 0:00:34.3]} 29... Nxb6 {[%clk 0:02:16.2]} 30. axb6 {[%clk
0:00:34.4]} 30... Rd7 {[%clk 0:02:16.8]} 31. b5 {[%clk 0:00:29.5]} 31... a5
{[%clk 0:02:12.1]} 32. Rbc1 {[%clk 0:00:17.5]} 32... Nc4 {[%clk 0:02:10.1]} 33.
Nf3 {[%clk 0:00:11.4]} 33... Rxd1 {[%clk 0:02:10.1]} 34. Rxd1 {[%clk 0:00:11.4]}
34... a4 {[%clk 0:02:10.8]} 35. Ra1 {[%clk 0:00:09]} 35... a3 {[%clk 0:02:11.1]}
36. Nd2 {[%clk 0:00:08.2]} 36... Bxc3 {[%clk 0:02:10.8]} 37. Nxc4 {[%clk
0:00:07.9]} 37... Bxa1 {[%clk 0:02:10.7]} 38. Nd6 {[%clk 0:00:01.8]} 38... Rc1
{[%clk 0:02:10.8]} 0-1

[Event "Early-Titled-Tuesday-Blitz-February-20-2024"]
[Site "Chess.com"]
[Date "2024.02.20"]
[Round "9"]
[White "IMRosen"]
[Black "GM_Huschenbeth"]
[Result "1-0"]
[WhiteElo "2670"]
[BlackElo "2506"]
[TimeControl "180+1"]
[EndTime "9:45:21 PST"]
[Termination "IMRosen won on time"]

1. e4 {[%clk 0:03:00.9]} 1... c5 {[%clk 0:02:59.4]} 2. Nc3 {[%clk 0:02:59]} 2...
d6 {[%clk 0:02:58.6]} 3. f4 {[%clk 0:02:57.5]} 3... g6 {[%clk 0:02:47.3]} 4. Nf3
{[%clk 0:02:57.5]} 4... Bg7 {[%clk 0:02:47.8]} 5. Bc4 {[%clk 0:02:58.2]} 5...
Nc6 {[%clk 0:02:42.6]} 6. O-O {[%clk 0:02:58]} 6... e6 {[%clk 0:02:14.6]} 7. d4
{[%clk 0:02:57.5]} 7... Nxd4 {[%clk 0:02:01.7]} 8. Be3 {[%clk 0:02:54.4]} 8...
Nxf3+ {[%clk 0:01:31.4]} 9. Qxf3 {[%clk 0:02:54.3]} 9... Ne7 {[%clk 0:01:31.2]}
10. f5 {[%clk 0:02:54.6]} 10... gxf5 {[%clk 0:01:28.9]} 11. exf5 {[%clk
0:02:54.1]} 11... exf5 {[%clk 0:00:58.4]} 12. Bg5 {[%clk 0:02:29.6]} 12... Be5
{[%clk 0:00:49]} 13. Nd5 {[%clk 0:02:20.7]} 13... Be6 {[%clk 0:00:36.1]} 14.
Bb5+ {[%clk 0:01:42.3]} 14... Kf8 {[%clk 0:00:11]} 15. Bxe7+ {[%clk 0:01:41.5]}
15... Qxe7 {[%clk 0:00:11.9]} 16. Nxe7 {[%clk 0:01:42.2]} 16... Kxe7 {[%clk
0:00:12.8]} 17. Qxb7+ {[%clk 0:01:41.6]} 17... Kf6 {[%clk 0:00:13.7]} 18. Bd3
{[%clk 0:01:39.9]} 18... Rhg8 {[%clk 0:00:07.3]} 19. Bxf5 {[%clk 0:01:29.4]}
19... Bxf5 {[%clk 0:00:03.4]} 20. Qe4 {[%clk 0:01:26.1]} 1-0

[Event "Early-Titled-Tuesday-Blitz-February-20-2024"]
[Site "Chess.com"]
[Date "2024.02.20"]
[Round "9"]
[White "kleopl"]
[Black "Chesstiger64"]
[Result "1-0"]
[WhiteElo "2515"]
[BlackElo "2314"]
[TimeControl "180+1"]
[EndTime "9:45:22 PST"]
[Termination "kleopl won by resignation"]

1. e4 {[%clk 0:03:00.9]} 1... e6 {[%clk 0:02:54]} 2. d4 {[%clk 0:02:59.7]} 2...
d5 {[%clk 0:02:54.4]} 3. Nd2 {[%clk 0:03:00]} 3... c5 {[%clk 0:02:52.8]} 4. exd5
{[%clk 0:02:58.9]} 4... Qxd5 {[%clk 0:02:51.4]} 5. Ngf3 {[%clk 0:02:59.2]} 5...
cxd4 {[%clk 0:02:51.2]} 6. Bc4 {[%clk 0:02:59.3]} 6... Qd8 {[%clk 0:02:50.4]} 7.
O-O {[%clk 0:02:57.7]} 7... Qc7 {[%clk 0:02:49.7]} 8. Nxd4 {[%clk 0:02:53.6]}
8... Bd7 {[%clk 0:02:46.8]} 9. Re1 {[%clk 0:02:52.2]} 9... Nf6 {[%clk
0:02:45.9]} 10. b3 {[%clk 0:02:46.1]} 10... Nc6 {[%clk 0:02:45.3]} 11. Nf5
{[%clk 0:02:34.6]} 11... g6 {[%clk 0:02:40.7]} 12. Bb2 {[%clk 0:02:33]} 12...
gxf5 {[%clk 0:02:28.2]} 13. Bxf6 {[%clk 0:02:32.9]} 13... Rg8 {[%clk 0:02:28.9]}
14. Qh5 {[%clk 0:02:29.9]} 14... Rg6 {[%clk 0:02:22.4]} 15. Bh4 {[%clk
0:02:08.3]} 15... Bd6 {[%clk 0:02:18]} 16. Qxh7 {[%clk 0:02:04.5]} 16... Ne7
{[%clk 0:02:02.8]} 17. Nf3 {[%clk 0:01:53.7]} 17... Bc6 {[%clk 0:01:51.1]} 18.
Ng5 {[%clk 0:01:44.9]} 18... Rxg5 {[%clk 0:01:26.5]} 19. Bxg5 {[%clk 0:01:42.6]}
19... b5 {[%clk 0:01:26]} 20. Bf1 {[%clk 0:01:35.8]} 20... Kd7 {[%clk
0:01:23.3]} 21. Rad1 {[%clk 0:01:33]} 21... Rg8 {[%clk 0:01:23.3]} 22. Bxe7
{[%clk 0:01:30.6]} 22... Kxe7 {[%clk 0:01:07]} 23. Qxg8 {[%clk 0:01:28.6]} 23...
Bxh2+ {[%clk 0:01:06.7]} 24. Kh1 {[%clk 0:01:28.6]} 24... Be5 {[%clk 0:01:00.1]}
25. c4 {[%clk 0:01:21.3]} 25... b4 {[%clk 0:00:57.7]} 26. c5 {[%clk 0:01:20.1]}
26... Kf6 {[%clk 0:00:52]} 27. Qh8+ {[%clk 0:01:18.7]} 27... Kg5 {[%clk
0:00:50.8]} 28. Qxe5 {[%clk 0:01:18.2]} 28... Qc8 {[%clk 0:00:50.3]} 29. Qg3+
{[%clk 0:01:17.5]} 29... Kf6 {[%clk 0:00:49.6]} 30. Rd6 {[%clk 0:01:15.3]} 30...
Qh8+ {[%clk 0:00:48.2]} 31. Kg1 {[%clk 0:01:13.1]} 31... Qh3 {[%clk 0:00:49.1]}
32. gxh3 {[%clk 0:01:07.5]} 1-0

[Event "Early-Titled-Tuesday-Blitz-February-20-2024"]
[Site "Chess.com"]
[Date "2024.02.20"]
[Round "9"]
[White "Perecke"]
[Black "arnash_bauyrzhan"]
[Result "1-0"]
[WhiteElo "2492"]
[BlackElo "2258"]
[TimeControl "180+1"]
[EndTime "9:45:40 PST"]
[Termination "Perecke won by resignation"]

1. d4 {[%clk 0:02:57.9]} 1... d5 {[%clk 0:02:59.6]} 2. Nf3 {[%clk 0:02:57.5]}
2... Nf6 {[%clk 0:02:59.1]} 3. b3 {[%clk 0:02:57.5]} 3... e6 {[%clk 0:02:59.1]}
4. e3 {[%clk 0:02:58.1]} 4... Be7 {[%clk 0:02:58.1]} 5. Bb2 {[%clk 0:02:58.7]}
5... O-O {[%clk 0:02:58.4]} 6. Bd3 {[%clk 0:02:59.4]} 6... b6 {[%clk 0:02:55.2]}
7. Ne5 {[%clk 0:02:59.8]} 7... Bb7 {[%clk 0:02:54.8]} 8. O-O {[%clk 0:03:00.4]}
8... Nbd7 {[%clk 0:02:54.7]} 9. f4 {[%clk 0:03:00.7]} 9... c5 {[%clk 0:02:54.8]}
10. Nxd7 {[%clk 0:02:39.5]} 10... Qxd7 {[%clk 0:02:52.2]} 11. dxc5 {[%clk
0:02:40]} 11... bxc5 {[%clk 0:02:52]} 12. Nd2 {[%clk 0:02:38.4]} 12... Rfd8
{[%clk 0:02:25.2]} 13. Nf3 {[%clk 0:02:21.3]} 13... Qd6 {[%clk 0:01:44.3]} 14.
Ne5 {[%clk 0:01:38.3]} 14... Qb6 {[%clk 0:01:21.2]} 15. Rf3 {[%clk 0:01:10.6]}
15... d4 {[%clk 0:01:15.7]} 16. Rh3 {[%clk 0:01:09.2]} 16... dxe3 {[%clk
0:01:07.7]} 17. Bxh7+ {[%clk 0:00:59.3]} 17... Nxh7 {[%clk 0:00:26.5]} 18. Qh5
{[%clk 0:00:58.2]} 18... Bf6 {[%clk 0:00:20.1]} 19. Qxf7+ {[%clk 0:00:53.5]} 1-0

[Event "Early-Titled-Tuesday-Blitz-February-20-2024"]
[Site "Chess.com"]
[Date "2024.02.20"]
[Round "9"]
[White "zurzan"]
[Black "pfalcon1949"]
[Result "0-1"]
[WhiteElo "2071"]
[BlackElo "2007"]
[TimeControl "180+1"]
[EndTime "9:45:46 PST"]
[Termination "pfalcon1949 won by checkmate"]

1. c4 {[%clk 0:03:00.8]} 1... Nf6 {[%clk 0:02:54.9]} 2. Nc3 {[%clk 0:02:53.9]}
2... c5 {[%clk 0:02:52.5]} 3. e4 {[%clk 0:02:52.5]} 3... d6 {[%clk 0:02:50.5]}
4. d3 {[%clk 0:02:51.4]} 4... g6 {[%clk 0:02:50.6]} 5. Nge2 {[%clk 0:02:50.9]}
5... Bg7 {[%clk 0:02:50.8]} 6. g3 {[%clk 0:02:51.1]} 6... O-O {[%clk 0:02:50.4]}
7. Bg2 {[%clk 0:02:52]} 7... Nc6 {[%clk 0:02:50.2]} 8. O-O {[%clk 0:02:52.9]}
8... Bd7 {[%clk 0:02:48.5]} 9. h3 {[%clk 0:02:53.1]} 9... Ne8 {[%clk 0:02:48.2]}
10. f4 {[%clk 0:02:52.2]} 10... Nc7 {[%clk 0:02:49.1]} 11. f5 {[%clk 0:02:51.2]}
11... a6 {[%clk 0:02:46.8]} 12. g4 {[%clk 0:02:50.4]} 12... b5 {[%clk
0:02:44.3]} 13. cxb5 {[%clk 0:02:50.2]} 13... axb5 {[%clk 0:02:43.8]} 14. Bf4
{[%clk 0:02:41.9]} 14... b4 {[%clk 0:02:41.7]} 15. Nd5 {[%clk 0:02:41.8]} 15...
Nxd5 {[%clk 0:02:41.4]} 16. exd5 {[%clk 0:02:42.7]} 16... Ne5 {[%clk 0:02:38.1]}
17. a3 {[%clk 0:02:37.7]} 17... bxa3 {[%clk 0:02:35.9]} 18. Rxa3 {[%clk
0:02:37.9]} 18... Rxa3 {[%clk 0:02:33.9]} 19. bxa3 {[%clk 0:02:38.8]} 19... Qa5
{[%clk 0:02:33.7]} 20. Qb3 {[%clk 0:02:34.9]} 20... Qa7 {[%clk 0:02:21.7]} 21.
Kh2 {[%clk 0:02:30.4]} 21... Rc8 {[%clk 0:02:18.9]} 22. Rb1 {[%clk 0:02:27.5]}
22... c4 {[%clk 0:02:16.9]} 23. dxc4 {[%clk 0:02:24.7]} 23... Qf2 {[%clk
0:02:13.7]} 24. Qe3 {[%clk 0:01:54.5]} 24... Qxe3 {[%clk 0:02:04.9]} 25. Bxe3
{[%clk 0:01:55.4]} 25... Nxc4 {[%clk 0:02:05.2]} 26. Bd4 {[%clk 0:01:54.2]}
26... Nxa3 {[%clk 0:02:03.5]} 27. Rb7 {[%clk 0:01:52.4]} 27... Bxd4 {[%clk
0:01:45.9]} 28. Nxd4 {[%clk 0:01:53.3]} 28... Ba4 {[%clk 0:01:25.6]} 29. Ra7
{[%clk 0:01:51.9]} 29... Rc4 {[%clk 0:01:24.4]} 30. Nc6 {[%clk 0:01:49.4]} 30...
Bxc6 {[%clk 0:01:20.3]} 31. dxc6 {[%clk 0:01:50.3]} 31... Nb5 {[%clk 0:01:18.6]}
32. Rxe7 {[%clk 0:01:49.3]} 32... Kg7 {[%clk 0:01:15.6]} 33. fxg6 {[%clk
0:01:46.8]} 33... hxg6 {[%clk 0:01:14.7]} 34. g5 {[%clk 0:01:47.7]} 34... Rc5
{[%clk 0:01:12.6]} 35. Rb7 {[%clk 0:01:45.9]} 35... Kf8 {[%clk 0:01:07.5]} 36.
h4 {[%clk 0:01:41.3]} 36... Ke8 {[%clk 0:01:06.5]} 37. Kg3 {[%clk 0:01:39.8]}
37... Rc3+ {[%clk 0:01:03.6]} 38. Kf4 {[%clk 0:01:37.2]} 38... Nd4 {[%clk
0:01:02.6]} 39. Rb8+ {[%clk 0:01:28.2]} 39... Ke7 {[%clk 0:01:01.8]} 40. Rb7+
{[%clk 0:01:25.6]} 40... Ke6 {[%clk 0:00:59.6]} 41. Rb6 {[%clk 0:01:10.6]} 41...
Ne2+ {[%clk 0:00:55.3]} 42. Kg4 {[%clk 0:00:59.3]} 42... Rg3# {[%clk 0:00:53.8]}
0-1